[Event "Titled Tuesday Blitz February 28 Late 2023"]
[White "Przybylski, Wojciech"]
[Black "Melkumyan, Hrant"]
[WhiteFideId "1117599"]
[BlackFideId "13302485"]
[WhiteElo "2222"]
[BlackElo "2604"]
[Result "1-0"]
[Round "01"]
[TimeControl "180+2"]
[Date "2023.02.28"]
[WhiteClock "0:00:04"]
[BlackClock "0:00:19"]

1. e4 {[%clk 0:02:58]}  c5 {[%clk 0:02:59]} 2. Nf3 {[%clk 0:02:57]}  Nc6 {[%clk 0:03:00]} 3. Bc4 {[%clk 0:02:54]}  e6 {[%clk 0:02:59]} 4. O-O {[%clk 0:02:54]}  Nf6 {[%clk 0:03:00]} 5. d3 {[%clk 0:02:53]}  d5 {[%clk 0:02:59]} 6. exd5 {[%clk 0:02:53]}  exd5 {[%clk 0:02:59]} 7. Bb3 {[%clk 0:02:53]}  Be7 {[%clk 0:02:58]} 8. h3 {[%clk 0:02:53]}  O-O {[%clk 0:02:57]} 9. Re1 {[%clk 0:02:52]}  Na5 {[%clk 0:02:51]} 10. Bf4 {[%clk 0:02:50]}  Nxb3 {[%clk 0:02:51]} 11. axb3 {[%clk 0:02:49]}  h6 {[%clk 0:02:52]} 12. Nc3 {[%clk 0:02:44]}  Bd7 {[%clk 0:02:43]} 13. Qd2 {[%clk 0:02:43]}  a6 {[%clk 0:02:39]} 14. Ne5 {[%clk 0:02:42]}  Be6 {[%clk 0:02:39]} 15. Bxh6 {[%clk 0:02:35]}  gxh6 {[%clk 0:02:34]} 16. Qxh6 {[%clk 0:02:35]}  Nh7 {[%clk 0:02:30]} 17. Re3 {[%clk 0:02:26]}  Bg5 {[%clk 0:02:26]} 18. Rg3 {[%clk 0:02:22]}  Kh8 {[%clk 0:02:26]} 19. Qh5 {[%clk 0:02:17]}  Qf6 {[%clk 0:02:25]} 20. Ng4 {[%clk 0:01:52]}  Qg6 {[%clk 0:02:17]} 21. Qxg6 {[%clk 0:01:37]}  fxg6 {[%clk 0:02:18]} 22. Ne5 {[%clk 0:01:32]}  Bf5 {[%clk 0:01:59]} 23. Nxd5 {[%clk 0:01:10]}  Rae8 {[%clk 0:01:59]} 24. f4 {[%clk 0:00:36]}  Bxf4 {[%clk 0:01:43]} 25. Nxf4 {[%clk 0:00:35]}  Rxe5 {[%clk 0:01:42]} 26. Rxg6 {[%clk 0:00:10]}  Bxg6 {[%clk 0:01:43]} 27. Nxg6+ {[%clk 0:00:10]}  Kg7 {[%clk 0:01:37]} 28. Nxe5 {[%clk 0:00:11]}  Ng5 {[%clk 0:01:35]} 29. Nf3 {[%clk 0:00:04]}  Ne6 {[%clk 0:01:34]} 30. Re1 {[%clk 0:00:04]}  Kf6 {[%clk 0:01:35]} 31. Kf2 {[%clk 0:00:04]}  Rh8 {[%clk 0:01:31]} 32. h4 {[%clk 0:00:04]}  Rg8 {[%clk 0:01:23]} 33. Re4 {[%clk 0:00:04]}  b5 {[%clk 0:01:22]} 34. g4 {[%clk 0:00:05]}  Ng7 {[%clk 0:01:15]} 35. Kg3 {[%clk 0:00:05]}  Nh5+ {[%clk 0:01:11]} 36. Kh3 {[%clk 0:00:05]}  Ng7 {[%clk 0:01:12]} 37. h5 {[%clk 0:00:04]}  Ne6 {[%clk 0:01:12]} 38. Kh4 {[%clk 0:00:04]}  Ng7 {[%clk 0:01:04]} 39. Rf4+ {[%clk 0:00:04]}  Ke7 {[%clk 0:01:03]} 40. g5 {[%clk 0:00:04]}  Ne6 {[%clk 0:01:04]} 41. Re4 {[%clk 0:00:04]}  Kd6 {[%clk 0:01:03]} 42. h6 {[%clk 0:00:05]}  Rf8 {[%clk 0:01:03]} 43. Kg4 {[%clk 0:00:05]}  Rh8 {[%clk 0:00:53]} 44. Nh4 {[%clk 0:00:05]}  Kd7 {[%clk 0:00:47]} 45. Nf5 {[%clk 0:00:05]}  Rf8 {[%clk 0:00:44]} 46. g6 {[%clk 0:00:04]}  Rf6 {[%clk 0:00:45]} 47. g7 {[%clk 0:00:03]}  Rg6+ {[%clk 0:00:45]} 48. Kh4 {[%clk 0:00:03]}  Rg1 {[%clk 0:00:46]} 49. h7 {[%clk 0:00:03]}  Nxg7 {[%clk 0:00:46]} 50. Nxg7 {[%clk 0:00:03]}  Rh1+ {[%clk 0:00:47]} 51. Kg4 {[%clk 0:00:03]}  Rxh7 {[%clk 0:00:47]} 52. Nf5 {[%clk 0:00:03]}  Rh2 {[%clk 0:00:48]} 53. Re7+ {[%clk 0:00:02]}  Kc6 {[%clk 0:00:47]} 54. Re6+ {[%clk 0:00:03]}  Kd7 {[%clk 0:00:41]} 55. Rxa6 {[%clk 0:00:03]}  Rxc2 {[%clk 0:00:40]} 56. Rb6 {[%clk 0:00:03]}  b4 {[%clk 0:00:40]} 57. Ne3 {[%clk 0:00:03]}  Rxb2 {[%clk 0:00:40]} 58. Kf4 {[%clk 0:00:03]}  Rxb3 {[%clk 0:00:40]} 59. Ke4 {[%clk 0:00:04]}  Rc3 {[%clk 0:00:39]} 60. Nc4 {[%clk 0:00:04]}  Kc7 {[%clk 0:00:37]} 61. Rb5 {[%clk 0:00:04]}  Kc6 {[%clk 0:00:36]} 62. Rb6+ {[%clk 0:00:04]}  Kc7 {[%clk 0:00:36]} 63. Ra6 {[%clk 0:00:04]}  Kb7 {[%clk 0:00:32]} 64. Ra5 {[%clk 0:00:04]}  Kc6 {[%clk 0:00:32]} 65. Ra6+ {[%clk 0:00:04]}  Kc7 {[%clk 0:00:33]} 66. Ra1 {[%clk 0:00:04]}  Kc6 {[%clk 0:00:33]} 67. Rh1 {[%clk 0:00:04]}  Kb5 {[%clk 0:00:28]} 68. Rh6 {[%clk 0:00:03]}  Ka4 {[%clk 0:00:27]} 69. Ra6+ {[%clk 0:00:03]}  Kb3 {[%clk 0:00:26]} 70. Ra5 {[%clk 0:00:03]}  Kc2 {[%clk 0:00:26]} 71. Rxc5 {[%clk 0:00:03]}  Rxd3 {[%clk 0:00:22]} 72. Ne3+ {[%clk 0:00:03]}  Kb2 {[%clk 0:00:18]} 73. Kxd3 {[%clk 0:00:03]}  b3 {[%clk 0:00:18]} 74. Rb5 {[%clk 0:00:03]}  Ka2 {[%clk 0:00:18]} 75. Kc3 {[%clk 0:00:03]}  Kb1 {[%clk 0:00:18]} 76. Rxb3+ {[%clk 0:00:03]}  Kc1 {[%clk 0:00:18]} 77. Ra3 {[%clk 0:00:03]}  Kb1 {[%clk 0:00:18]} 78. Ra4 {[%clk 0:00:04]}  Kc1 {[%clk 0:00:19]} 79. Ra1# {[%clk 0:00:04]} 1-0


[Site "https://www.chess.com"]

[Event "Titled Tuesday Blitz February 28 Late 2023"]
[White "Pichot, Alan"]
[Black "The_Sherman_Variation"]
[WhiteFideId "110973"]
[WhiteElo "2573"]
[BlackElo "2453"]
[Result "1-0"]
[Round "01"]
[TimeControl "180+2"]
[Date "2023.02.28"]
[WhiteClock "0:01:54"]
[BlackClock "0:00:52"]

1. e4 {[%clk 0:02:58]}  d6 {[%clk 0:02:54]} 2. d4 {[%clk 0:02:57]}  g6 {[%clk 0:02:54]} 3. c4 {[%clk 0:02:56]}  Bg7 {[%clk 0:02:54]} 4. Nc3 {[%clk 0:02:55]}  c6 {[%clk 0:02:54]} 5. g3 {[%clk 0:02:51]}  Nd7 {[%clk 0:02:54]} 6. Bg2 {[%clk 0:02:51]}  Ngf6 {[%clk 0:02:54]} 7. Nge2 {[%clk 0:02:51]}  O-O {[%clk 0:02:54]} 8. O-O {[%clk 0:02:50]}  Re8 {[%clk 0:02:55]} 9. h3 {[%clk 0:02:50]}  e5 {[%clk 0:02:55]} 10. d5 {[%clk 0:02:50]}  c5 {[%clk 0:02:50]} 11. a3 {[%clk 0:02:48]}  h6 {[%clk 0:02:47]} 12. b4 {[%clk 0:02:47]}  b6 {[%clk 0:02:44]} 13. Be3 {[%clk 0:02:44]}  Nh7 {[%clk 0:02:40]} 14. Qc2 {[%clk 0:02:42]}  Ndf8 {[%clk 0:02:38]} 15. bxc5 {[%clk 0:02:39]}  bxc5 {[%clk 0:02:37]} 16. Rab1 {[%clk 0:02:37]}  f5 {[%clk 0:02:31]} 17. exf5 {[%clk 0:02:35]}  gxf5 {[%clk 0:02:28]} 18. f4 {[%clk 0:02:17]}  e4 {[%clk 0:02:13]} 19. g4 {[%clk 0:02:17]}  Ng6 {[%clk 0:02:04]} 20. Ng3 {[%clk 0:02:11]}  Bd4 {[%clk 0:01:51]} 21. Qd2 {[%clk 0:02:00]}  Qf6 {[%clk 0:01:36]} 22. Nh5 {[%clk 0:02:00]}  Qh8 {[%clk 0:01:31]} 23. Nb5 {[%clk 0:01:59]}  Bxe3+ {[%clk 0:01:26]} 24. Qxe3 {[%clk 0:02:00]}  Rd8 {[%clk 0:01:15]} 25. Nc7 {[%clk 0:02:00]}  Bd7 {[%clk 0:01:11]} 26. Nxa8 {[%clk 0:01:59]}  Rxa8 {[%clk 0:01:11]} 27. Rb7 {[%clk 0:02:00]}  Nhf8 {[%clk 0:01:10]} 28. gxf5 {[%clk 0:01:58]}  Ne7 {[%clk 0:01:01]} 29. f6 {[%clk 0:01:55]}  Nf5 {[%clk 0:00:56]} 30. Qxe4 {[%clk 0:01:55]}  Re8 {[%clk 0:00:54]} 31. Qxf5 {[%clk 0:01:52]}  Bxf5 {[%clk 0:00:51]} 32. Rg7+ {[%clk 0:01:53]}  Qxg7 {[%clk 0:00:52]} 33. Nxg7 {[%clk 0:01:54]} 1-0


[Site "https://www.chess.com"]

[Event "Titled Tuesday Blitz February 28 Late 2023"]
[White "Mazurkiewicz, Michal"]
[Black "Moroni, Luca Jr"]
[WhiteFideId "1124943"]
[BlackFideId "865834"]
[WhiteElo "2054"]
[BlackElo "2569"]
[Result "0-1"]
[Round "01"]
[TimeControl "180+2"]
[Date "2023.02.28"]
[WhiteClock "0:00:02"]
[BlackClock "0:00:18"]

1. e4 {[%clk 0:02:59]}  g6 {[%clk 0:03:00]} 2. d4 {[%clk 0:02:59]}  Bg7 {[%clk 0:02:59]} 3. Nc3 {[%clk 0:02:59]}  a6 {[%clk 0:02:59]} 4. f4 {[%clk 0:02:59]}  d5 {[%clk 0:02:58]} 5. Nxd5 {[%clk 0:02:39]}  e6 {[%clk 0:02:58]} 6. Nc3 {[%clk 0:02:39]}  Qxd4 {[%clk 0:02:58]} 7. Nf3 {[%clk 0:02:40]}  Qxd1+ {[%clk 0:02:56]} 8. Nxd1 {[%clk 0:02:39]}  b6 {[%clk 0:02:56]} 9. Bd3 {[%clk 0:02:37]}  Bb7 {[%clk 0:02:57]} 10. O-O {[%clk 0:02:35]}  Nd7 {[%clk 0:02:57]} 11. Be3 {[%clk 0:02:33]}  Ne7 {[%clk 0:02:57]} 12. Nc3 {[%clk 0:02:27]}  O-O-O {[%clk 0:02:54]} 13. Ng5 {[%clk 0:02:18]}  Rdf8 {[%clk 0:02:54]} 14. e5 {[%clk 0:02:18]}  Nf5 {[%clk 0:02:43]} 15. Bf2 {[%clk 0:02:15]}  h6 {[%clk 0:02:40]} 16. Nge4 {[%clk 0:02:15]}  g5 {[%clk 0:02:40]} 17. g3 {[%clk 0:02:07]}  gxf4 {[%clk 0:02:36]} 18. gxf4 {[%clk 0:02:08]}  Rfg8 {[%clk 0:02:29]} 19. Ng3 {[%clk 0:02:08]}  h5 {[%clk 0:02:07]} 20. Be4 {[%clk 0:02:01]}  Nxg3 {[%clk 0:01:54]} 21. hxg3 {[%clk 0:02:02]}  Bh6 {[%clk 0:01:46]} 22. Rad1 {[%clk 0:01:15]}  Bxe4 {[%clk 0:01:32]} 23. Nxe4 {[%clk 0:01:15]}  Bxf4 {[%clk 0:01:24]} 24. Be1 {[%clk 0:00:13]}  Bxe5 {[%clk 0:01:13]} 25. Rxf7 {[%clk 0:00:11]}  Nc5 {[%clk 0:01:09]} 26. Nxc5 {[%clk 0:00:10]}  bxc5 {[%clk 0:01:10]} 27. Kh1 {[%clk 0:00:04]}  Bd6 {[%clk 0:00:29]} 28. Bc3 {[%clk 0:00:04]}  Rh6 {[%clk 0:00:28]} 29. Rd3 {[%clk 0:00:03]}  Rhg6 {[%clk 0:00:21]} 30. Be1 {[%clk 0:00:01]}  Rg5 {[%clk 0:00:18]} 31. Rdf3 {[%clk 0:00:02]}  Re5 {[%clk 0:00:18]} 32. Bf2 {[%clk 0:00:02]}  Re2 {[%clk 0:00:18]} 33. Kg1 {[%clk 0:00:02]}  Rxc2 {[%clk 0:00:18]} 34. Kg2 {[%clk 0:00:02]}  Rxb2 {[%clk 0:00:18]} 35. Kh3 {[%clk 0:00:02]}  Rxa2 {[%clk 0:00:18]} 36. Be3 {[%clk 0:00:02]}  Ra3 {[%clk 0:00:18]} 0-1


[Site "https://www.chess.com"]

[Event "Titled Tuesday Blitz February 28 Late 2023"]
[White "Gokerkan, Cem Kaan"]
[Black "Wu, Sibo"]
[WhiteFideId "6336760"]
[BlackFideId "8606048"]
[WhiteElo "2365"]
[BlackElo "2452"]
[Result "1-0"]
[Round "01"]
[TimeControl "180+2"]
[Date "2023.02.28"]
[WhiteClock "0:00:35"]
[BlackClock "0:00:16"]

1. e4 {[%clk 0:02:58]}  c5 {[%clk 0:03:00]} 2. c3 {[%clk 0:02:58]}  d5 {[%clk 0:02:59]} 3. exd5 {[%clk 0:02:59]}  Qxd5 {[%clk 0:03:00]} 4. d4 {[%clk 0:02:59]}  e6 {[%clk 0:02:58]} 5. Nf3 {[%clk 0:03:00]}  Nf6 {[%clk 0:02:58]} 6. Na3 {[%clk 0:02:59]}  cxd4 {[%clk 0:02:57]} 7. Nb5 {[%clk 0:02:59]}  Qd8 {[%clk 0:02:54]} 8. Bf4 {[%clk 0:02:58]}  Na6 {[%clk 0:02:46]} 9. Nbxd4 {[%clk 0:02:35]}  Be7 {[%clk 0:02:22]} 10. Bxa6 {[%clk 0:02:33]}  bxa6 {[%clk 0:02:23]} 11. O-O {[%clk 0:02:33]}  Bb7 {[%clk 0:02:20]} 12. Qa4+ {[%clk 0:02:29]}  Qd7 {[%clk 0:02:19]} 13. Qxd7+ {[%clk 0:02:27]}  Nxd7 {[%clk 0:02:18]} 14. Rfd1 {[%clk 0:02:27]}  Nc5 {[%clk 0:02:08]} 15. Nb3 {[%clk 0:02:11]}  Bd5 {[%clk 0:01:40]} 16. Nxc5 {[%clk 0:02:03]}  Bxc5 {[%clk 0:01:41]} 17. c4 {[%clk 0:01:56]}  Bxf3 {[%clk 0:01:33]} 18. gxf3 {[%clk 0:01:57]}  Ke7 {[%clk 0:01:33]} 19. b3 {[%clk 0:01:52]}  Rhd8 {[%clk 0:01:30]} 20. Be3 {[%clk 0:01:43]}  Bb4 {[%clk 0:01:24]} 21. Rxd8 {[%clk 0:01:33]}  Rxd8 {[%clk 0:01:24]} 22. Bxa7 {[%clk 0:01:26]}  Rd2 {[%clk 0:01:21]} 23. Be3 {[%clk 0:01:25]}  Rc2 {[%clk 0:01:13]} 24. a3 {[%clk 0:01:23]}  Bd6 {[%clk 0:01:07]} 25. Rc1 {[%clk 0:00:49]}  Ra2 {[%clk 0:00:53]} 26. c5 {[%clk 0:00:49]}  Bc7 {[%clk 0:00:50]} 27. a4 {[%clk 0:00:47]}  Rb2 {[%clk 0:00:44]} 28. Rc3 {[%clk 0:00:46]}  e5 {[%clk 0:00:36]} 29. Kf1 {[%clk 0:00:33]}  f5 {[%clk 0:00:31]} 30. Bc1 {[%clk 0:00:34]}  Rb1 {[%clk 0:00:30]} 31. Ke2 {[%clk 0:00:34]}  Ba5 {[%clk 0:00:24]} 32. Bg5+ {[%clk 0:00:34]}  Ke6 {[%clk 0:00:22]} 33. Rd3 {[%clk 0:00:35]}  e4 {[%clk 0:00:16]} 34. Rd6+ {[%clk 0:00:35]}  Ke5 {[%clk 0:00:16]} 35. f4# {[%clk 0:00:35]} 1-0


[Site "https://www.chess.com"]

[Event "Titled Tuesday Blitz February 28 Late 2023"]
[White "Dzida, Kamil"]
[Black "Mendonca, Leon Luke"]
[WhiteFideId "21828652"]
[BlackFideId "35028561"]
[WhiteElo "2139"]
[BlackElo "2464"]
[Result "0-1"]
[Round "01"]
[TimeControl "180+2"]
[Date "2023.02.28"]
[WhiteClock "0:00:03"]
[BlackClock "0:00:08"]

1. e4 {[%clk 0:02:58]}  c5 {[%clk 0:02:55]} 2. Nf3 {[%clk 0:02:58]}  b6 {[%clk 0:02:51]} 3. d4 {[%clk 0:02:54]}  cxd4 {[%clk 0:02:51]} 4. Nxd4 {[%clk 0:02:53]}  Bb7 {[%clk 0:02:52]} 5. Nc3 {[%clk 0:02:50]}  Nf6 {[%clk 0:02:51]} 6. e5 {[%clk 0:02:46]}  Nd5 {[%clk 0:02:51]} 7. Nxd5 {[%clk 0:02:08]}  Bxd5 {[%clk 0:02:52]} 8. Be2 {[%clk 0:01:57]}  Nc6 {[%clk 0:02:41]} 9. Nxc6 {[%clk 0:01:50]}  Bxc6 {[%clk 0:02:39]} 10. O-O {[%clk 0:01:50]}  e6 {[%clk 0:02:39]} 11. Bf3 {[%clk 0:01:43]}  Rc8 {[%clk 0:02:40]} 12. c3 {[%clk 0:01:38]}  Be7 {[%clk 0:02:36]} 13. Bf4 {[%clk 0:01:33]}  O-O {[%clk 0:02:34]} 14. Bxc6 {[%clk 0:01:17]}  Rxc6 {[%clk 0:02:31]} 15. Qd3 {[%clk 0:01:17]}  Qc7 {[%clk 0:02:31]} 16. Rfd1 {[%clk 0:01:16]}  Rd8 {[%clk 0:02:30]} 17. Qg3 {[%clk 0:01:13]}  b5 {[%clk 0:02:25]} 18. Rd3 {[%clk 0:01:12]}  a5 {[%clk 0:02:21]} 19. Rad1 {[%clk 0:01:11]}  b4 {[%clk 0:02:21]} 20. Bh6 {[%clk 0:01:01]}  g6 {[%clk 0:02:20]} 21. cxb4 {[%clk 0:00:58]}  axb4 {[%clk 0:02:19]} 22. Bg5 {[%clk 0:00:52]}  Bxg5 {[%clk 0:02:16]} 23. Qxg5 {[%clk 0:00:53]}  Rc5 {[%clk 0:02:13]} 24. Rd6 {[%clk 0:00:43]}  Rc2 {[%clk 0:02:04]} 25. h4 {[%clk 0:00:39]}  Rf8 {[%clk 0:01:04]} 26. Rxd7 {[%clk 0:00:38]}  Qc5 {[%clk 0:01:04]} 27. Qf6 {[%clk 0:00:35]}  Rc1 {[%clk 0:00:40]} 28. h5 {[%clk 0:00:34]}  Rxd1+ {[%clk 0:00:37]} 29. Rxd1 {[%clk 0:00:35]}  Qc2 {[%clk 0:00:38]} 30. Rd4 {[%clk 0:00:12]}  Qxb2 {[%clk 0:00:37]} 31. Rh4 {[%clk 0:00:06]}  Qb1+ {[%clk 0:00:16]} 32. Kh2 {[%clk 0:00:06]}  Qf5 {[%clk 0:00:16]} 33. hxg6 {[%clk 0:00:04]}  fxg6 {[%clk 0:00:14]} 34. Qxf5 {[%clk 0:00:04]}  Rxf5 {[%clk 0:00:15]} 35. Rxb4 {[%clk 0:00:04]}  Rxf2 {[%clk 0:00:16]} 36. a4 {[%clk 0:00:04]}  Re2 {[%clk 0:00:16]} 37. Rb5 {[%clk 0:00:04]}  Re4 {[%clk 0:00:15]} 38. a5 {[%clk 0:00:04]}  Ra4 {[%clk 0:00:16]} 39. g3 {[%clk 0:00:04]}  Kg7 {[%clk 0:00:16]} 40. g4 {[%clk 0:00:04]}  Rxg4 {[%clk 0:00:15]} 41. Rb6 {[%clk 0:00:04]}  Ra4 {[%clk 0:00:15]} 42. a6 {[%clk 0:00:05]}  g5 {[%clk 0:00:14]} 43. Rxe6 {[%clk 0:00:05]}  h5 {[%clk 0:00:14]} 44. Rb6 {[%clk 0:00:05]}  g4 {[%clk 0:00:15]} 45. e6 {[%clk 0:00:04]}  h4 {[%clk 0:00:11]} 46. Rb7+ {[%clk 0:00:03]}  Kf6 {[%clk 0:00:11]} 47. a7 {[%clk 0:00:04]}  Kxe6 {[%clk 0:00:10]} 48. Rb4 {[%clk 0:00:04]}  Ra2+ {[%clk 0:00:07]} 49. Kg1 {[%clk 0:00:04]}  Kf5 {[%clk 0:00:08]} 50. Rb5+ {[%clk 0:00:04]}  Kf4 {[%clk 0:00:09]} 51. Rb4+ {[%clk 0:00:04]}  Kf3 {[%clk 0:00:09]} 52. Rb3+ {[%clk 0:00:05]}  Kf4 {[%clk 0:00:07]} 53. Rb4+ {[%clk 0:00:05]}  Kf5 {[%clk 0:00:08]} 54. Rb5+ {[%clk 0:00:06]}  Ke6 {[%clk 0:00:09]} 55. Rb4 {[%clk 0:00:06]}  Ra1+ {[%clk 0:00:08]} 56. Kg2 {[%clk 0:00:06]}  Kf5 {[%clk 0:00:07]} 57. Rb5+ {[%clk 0:00:06]}  Ke6 {[%clk 0:00:08]} 58. Rb4 {[%clk 0:00:06]}  h3+ {[%clk 0:00:08]} 59. Kh2 {[%clk 0:00:05]}  Kf5 {[%clk 0:00:08]} 60. Rb5+ {[%clk 0:00:05]}  Kf4 {[%clk 0:00:08]} 61. Rb4+ {[%clk 0:00:05]}  Kg5 {[%clk 0:00:09]} 62. Rb5+ {[%clk 0:00:04]}  Kh4 {[%clk 0:00:09]} 63. a8=Q {[%clk 0:00:03]}  g3# {[%clk 0:00:08]} 0-1


[Site "https://www.chess.com"]

[Event "Titled Tuesday Blitz February 28 Late 2023"]
[White "Holt, Conrad"]
[Black "Ramirez Allo, Eduardo"]
[WhiteFideId "2034387"]
[BlackFideId "2224178"]
[WhiteElo "2592"]
[BlackElo "2450"]
[Result "1-0"]
[Round "01"]
[TimeControl "180+2"]
[Date "2023.02.28"]
[WhiteClock "0:01:45"]
[BlackClock "0:01:55"]

1. d4 {[%clk 0:02:57]}  Nf6 {[%clk 0:02:59]} 2. c4 {[%clk 0:02:57]}  c5 {[%clk 0:03:00]} 3. d5 {[%clk 0:02:57]}  b5 {[%clk 0:03:00]} 4. Nf3 {[%clk 0:02:56]}  d6 {[%clk 0:03:00]} 5. cxb5 {[%clk 0:02:55]}  a6 {[%clk 0:03:00]} 6. e3 {[%clk 0:02:55]}  g6 {[%clk 0:03:00]} 7. Nc3 {[%clk 0:02:54]}  Bg7 {[%clk 0:03:01]} 8. a4 {[%clk 0:02:54]}  O-O {[%clk 0:03:01]} 9. Ra3 {[%clk 0:02:54]}  Nbd7 {[%clk 0:02:59]} 10. Be2 {[%clk 0:02:51]}  Ne8 {[%clk 0:02:56]} 11. O-O {[%clk 0:02:48]}  Nc7 {[%clk 0:02:56]} 12. e4 {[%clk 0:02:46]}  Rb8 {[%clk 0:02:53]} 13. Bg5 {[%clk 0:02:41]}  h6 {[%clk 0:02:48]} 14. Be3 {[%clk 0:02:36]}  Ne5 {[%clk 0:02:47]} 15. Nxe5 {[%clk 0:02:35]}  Bxe5 {[%clk 0:02:47]} 16. Bxh6 {[%clk 0:02:35]}  Re8 {[%clk 0:02:47]} 17. Qd2 {[%clk 0:02:31]}  axb5 {[%clk 0:02:45]} 18. axb5 {[%clk 0:02:29]}  Bd7 {[%clk 0:02:45]} 19. Bf4 {[%clk 0:02:16]}  Bg7 {[%clk 0:02:41]} 20. Rb3 {[%clk 0:02:08]}  Rb7 {[%clk 0:02:33]} 21. Bh6 {[%clk 0:02:04]}  Be5 {[%clk 0:02:27]} 22. f4 {[%clk 0:02:03]}  Bd4+ {[%clk 0:02:26]} 23. Kh1 {[%clk 0:02:04]}  Qb8 {[%clk 0:02:27]} 24. f5 {[%clk 0:02:03]}  Nxb5 {[%clk 0:02:20]} 25. fxg6 {[%clk 0:02:02]}  fxg6 {[%clk 0:02:20]} 26. Qg5 {[%clk 0:01:55]}  Kh8 {[%clk 0:02:11]} 27. Nxb5 {[%clk 0:01:49]}  Bxb5 {[%clk 0:02:11]} 28. Bxb5 {[%clk 0:01:49]}  Rxb5 {[%clk 0:02:12]} 29. Rh3 {[%clk 0:01:48]}  Rxb2 {[%clk 0:02:05]} 30. Qxg6 {[%clk 0:01:46]}  Rb1 {[%clk 0:01:54]} 31. Bg7+ {[%clk 0:01:45]}  Kg8 {[%clk 0:01:55]} 32. Bxd4# {[%clk 0:01:45]} 1-0


[Site "https://www.chess.com"]

[Event "Titled Tuesday Blitz February 28 Late 2023"]
[White "Meissner, Felix"]
[Black "Makridis, Dimitrios"]
[WhiteFideId "24671827"]
[BlackFideId "25864475"]
[WhiteElo "2350"]
[BlackElo "2277"]
[Result "1-0"]
[Round "01"]
[TimeControl "180+2"]
[Date "2023.02.28"]
[WhiteClock "0:00:26"]
[BlackClock "0:00:02"]

1. e4 {[%clk 0:03:00]}  c5 {[%clk 0:02:56]} 2. Nf3 {[%clk 0:03:00]}  Nc6 {[%clk 0:02:54]} 3. Bb5 {[%clk 0:03:00]}  e6 {[%clk 0:02:51]} 4. O-O {[%clk 0:02:59]}  Nge7 {[%clk 0:02:49]} 5. Re1 {[%clk 0:03:00]}  a6 {[%clk 0:02:41]} 6. Bf1 {[%clk 0:02:59]}  d6 {[%clk 0:02:09]} 7. b3 {[%clk 0:02:47]}  e5 {[%clk 0:02:04]} 8. c3 {[%clk 0:02:44]}  g6 {[%clk 0:02:04]} 9. d4 {[%clk 0:02:44]}  Bg7 {[%clk 0:02:03]} 10. dxc5 {[%clk 0:02:43]}  dxc5 {[%clk 0:02:03]} 11. Qxd8+ {[%clk 0:02:43]}  Nxd8 {[%clk 0:02:04]} 12. a4 {[%clk 0:02:37]}  f6 {[%clk 0:01:55]} 13. Na3 {[%clk 0:02:35]}  Nf7 {[%clk 0:01:49]} 14. Nc4 {[%clk 0:02:34]}  Be6 {[%clk 0:01:44]} 15. Be3 {[%clk 0:02:33]}  Rc8 {[%clk 0:01:35]} 16. a5 {[%clk 0:02:20]}  h5 {[%clk 0:01:22]} 17. Rad1 {[%clk 0:02:19]}  Rc6 {[%clk 0:01:14]} 18. Nfd2 {[%clk 0:02:13]}  Bh6 {[%clk 0:01:02]} 19. Bxh6 {[%clk 0:02:06]}  Nxh6 {[%clk 0:01:03]} 20. Nb6 {[%clk 0:01:53]}  Nf7 {[%clk 0:00:54]} 21. Ndc4 {[%clk 0:01:50]}  Nc8 {[%clk 0:00:49]} 22. Nd5 {[%clk 0:01:47]}  Bxd5 {[%clk 0:00:44]} 23. exd5 {[%clk 0:01:47]}  Rc7 {[%clk 0:00:45]} 24. Ne3 {[%clk 0:01:35]}  Ncd6 {[%clk 0:00:44]} 25. c4 {[%clk 0:01:35]}  g5 {[%clk 0:00:43]} 26. Bd3 {[%clk 0:01:34]}  Kf8 {[%clk 0:00:41]} 27. g3 {[%clk 0:01:29]}  e4 {[%clk 0:00:41]} 28. Be2 {[%clk 0:01:26]}  f5 {[%clk 0:00:42]} 29. f3 {[%clk 0:01:24]}  f4 {[%clk 0:00:41]} 30. Ng2 {[%clk 0:01:23]}  fxg3 {[%clk 0:00:34]} 31. hxg3 {[%clk 0:01:22]}  exf3 {[%clk 0:00:33]} 32. Bxf3 {[%clk 0:01:22]}  Kg7 {[%clk 0:00:33]} 33. Re6 {[%clk 0:01:19]}  Rh6 {[%clk 0:00:33]} 34. Rde1 {[%clk 0:01:19]}  Rd7 {[%clk 0:00:27]} 35. Ne3 {[%clk 0:01:14]}  g4 {[%clk 0:00:24]} 36. Bg2 {[%clk 0:01:11]}  Ng5 {[%clk 0:00:22]} 37. Re5 {[%clk 0:00:59]}  Ngf7 {[%clk 0:00:19]} 38. Nf5+ {[%clk 0:00:52]}  Nxf5 {[%clk 0:00:19]} 39. Rxf5 {[%clk 0:00:53]}  Nd6 {[%clk 0:00:14]} 40. Rfe5 {[%clk 0:00:48]}  Rf7 {[%clk 0:00:14]} 41. Re7 {[%clk 0:00:46]}  Rf6 {[%clk 0:00:14]} 42. Rxf7+ {[%clk 0:00:47]}  Kxf7 {[%clk 0:00:15]} 43. Re5 {[%clk 0:00:41]}  Kg6 {[%clk 0:00:15]} 44. Re7 {[%clk 0:00:40]}  Rf7 {[%clk 0:00:14]} 45. Re6+ {[%clk 0:00:40]}  Rf6 {[%clk 0:00:14]} 46. Re7 {[%clk 0:00:40]}  Kf5 {[%clk 0:00:14]} 47. Kf2 {[%clk 0:00:37]}  Kg5+ {[%clk 0:00:12]} 48. Ke3 {[%clk 0:00:38]}  h4 {[%clk 0:00:13]} 49. gxh4+ {[%clk 0:00:38]}  Kxh4 {[%clk 0:00:13]} 50. Re6 {[%clk 0:00:36]}  Kg5 {[%clk 0:00:06]} 51. Rxf6 {[%clk 0:00:35]}  Kxf6 {[%clk 0:00:07]} 52. Kf4 {[%clk 0:00:35]}  Nf5 {[%clk 0:00:05]} 53. Be4 {[%clk 0:00:32]}  Nd4 {[%clk 0:00:05]} 54. d6 {[%clk 0:00:30]}  Ne6+ {[%clk 0:00:03]} 55. Kxg4 {[%clk 0:00:30]}  Nd4 {[%clk 0:00:03]} 56. Bxb7 {[%clk 0:00:30]}  Ke6 {[%clk 0:00:04]} 57. Bxa6 {[%clk 0:00:28]}  Nxb3 {[%clk 0:00:04]} 58. Bc8+ {[%clk 0:00:26]}  Kxd6 {[%clk 0:00:03]} 59. a6 {[%clk 0:00:27]}  Kc7 {[%clk 0:00:02]} 60. a7 {[%clk 0:00:26]}  Nd4 {[%clk 0:00:02]} 61. a8=Q {[%clk 0:00:26]} 1-0


[Site "https://www.chess.com"]